[Event "Titled Tuesday Blitz March 14 Early 2023"]
[White "Degenbaev, Aziz"]
[Black "Baruch, Liam"]
[WhiteFideId "13802640"]
[BlackFideId "14322064"]
[WhiteElo "2152"]
[BlackElo "2165"]
[Result "1-0"]
[Round "10"]
[TimeControl "180+2"]
[Date "2023.03.14"]
[WhiteClock "0:00:03"]
[BlackClock "0:00:05"]

1. e4 {[%clk 0:03:00]}  e5 {[%clk 0:03:00]} 2. Nf3 {[%clk 0:03:01]}  Nc6 {[%clk 0:03:01]} 3. d4 {[%clk 0:03:01]}  exd4 {[%clk 0:03:01]} 4. Nxd4 {[%clk 0:03:02]}  Bc5 {[%clk 0:03:00]} 5. Nb3 {[%clk 0:03:00]}  Bb6 {[%clk 0:03:00]} 6. Nc3 {[%clk 0:03:00]}  d6 {[%clk 0:02:57]} 7. Bf4 {[%clk 0:02:40]}  Nf6 {[%clk 0:02:55]} 8. Qd2 {[%clk 0:02:40]}  Na5 {[%clk 0:02:41]} 9. O-O-O {[%clk 0:02:12]}  Nxb3+ {[%clk 0:02:40]} 10. axb3 {[%clk 0:02:11]}  O-O {[%clk 0:02:37]} 11. f3 {[%clk 0:02:12]}  a5 {[%clk 0:02:36]} 12. g4 {[%clk 0:02:08]}  Bd7 {[%clk 0:02:28]} 13. Kb1 {[%clk 0:02:05]}  a4 {[%clk 0:02:25]} 14. h4 {[%clk 0:01:54]}  a3 {[%clk 0:02:18]} 15. h5 {[%clk 0:01:50]}  axb2 {[%clk 0:02:15]} 16. Kxb2 {[%clk 0:01:50]}  Qe7 {[%clk 0:01:57]} 17. g5 {[%clk 0:01:48]}  d5 {[%clk 0:01:46]} 18. Nb1 {[%clk 0:01:20]}  Ne8 {[%clk 0:01:36]} 19. exd5 {[%clk 0:01:09]}  Bc5 {[%clk 0:01:28]} 20. d6 {[%clk 0:00:25]}  Nxd6 {[%clk 0:01:28]} 21. Qd5 {[%clk 0:00:23]}  Bb4 {[%clk 0:00:53]} 22. g6 {[%clk 0:00:18]}  Be6 {[%clk 0:00:44]} 23. Qd4 {[%clk 0:00:13]}  Nb5 {[%clk 0:00:35]} 24. Bxb5 {[%clk 0:00:09]}  Ba3+ {[%clk 0:00:31]} 25. Nxa3 {[%clk 0:00:01]}  Qxa3+ {[%clk 0:00:30]} 26. Kb1 {[%clk 0:00:02]}  c5 {[%clk 0:00:20]} 27. gxh7+ {[%clk 0:00:02]}  Kh8 {[%clk 0:00:20]} 28. Qb2 {[%clk 0:00:03]}  Qa5 {[%clk 0:00:15]} 29. Rhg1 {[%clk 0:00:03]}  f6 {[%clk 0:00:15]} 30. Ba4 {[%clk 0:00:02]}  b5 {[%clk 0:00:15]} 31. h6 {[%clk 0:00:03]}  Rf7 {[%clk 0:00:10]} 32. hxg7+ {[%clk 0:00:03]}  Rxg7 {[%clk 0:00:10]} 33. Qxf6 {[%clk 0:00:04]}  Qa7 {[%clk 0:00:06]} 34. Bh6 {[%clk 0:00:02]}  Rg8 {[%clk 0:00:05]} 35. Bxg7+ {[%clk 0:00:02]}  Rxg7 {[%clk 0:00:05]} 36. Rd8+ {[%clk 0:00:03]}  Bg8 {[%clk 0:00:05]} 37. hxg8=Q# {[%clk 0:00:03]} 1-0


[Site "https://www.chess.com"]

[Event "Titled Tuesday Blitz March 14 Early 2023"]
[White "ritanovikova"]
[Black "Rodchenkov, Sergey D."]
[BlackFideId "4168712"]
[WhiteElo "2165"]
[BlackElo "2277"]
[Result "0-1"]
[Round "10"]
[TimeControl "180+2"]
[Date "2023.03.14"]
[WhiteClock "0:00:30"]
[BlackClock "0:01:18"]

1. e4 {[%clk 0:02:59]}  c5 {[%clk 0:03:00]} 2. Nc3 {[%clk 0:02:59]}  d6 {[%clk 0:03:00]} 3. d3 {[%clk 0:02:58]}  Nc6 {[%clk 0:02:59]} 4. g3 {[%clk 0:02:58]}  g6 {[%clk 0:03:00]} 5. Bg2 {[%clk 0:02:58]}  Bg7 {[%clk 0:03:00]} 6. Be3 {[%clk 0:02:58]}  Rb8 {[%clk 0:03:00]} 7. Qd2 {[%clk 0:02:58]}  b5 {[%clk 0:03:01]} 8. Nd1 {[%clk 0:02:57]}  b4 {[%clk 0:03:01]} 9. Ne2 {[%clk 0:02:57]}  Nd4 {[%clk 0:03:00]} 10. c3 {[%clk 0:02:54]}  Nxe2 {[%clk 0:03:00]} 11. Qxe2 {[%clk 0:02:53]}  a5 {[%clk 0:02:59]} 12. h4 {[%clk 0:02:48]}  Nf6 {[%clk 0:02:50]} 13. f3 {[%clk 0:02:45]}  h5 {[%clk 0:02:46]} 14. Nf2 {[%clk 0:02:42]}  d5 {[%clk 0:02:32]} 15. Bxc5 {[%clk 0:02:36]}  Nd7 {[%clk 0:02:31]} 16. Bd4 {[%clk 0:02:31]}  e5 {[%clk 0:02:29]} 17. Be3 {[%clk 0:02:30]}  bxc3 {[%clk 0:02:29]} 18. bxc3 {[%clk 0:02:28]}  Qc7 {[%clk 0:02:28]} 19. Bd2 {[%clk 0:02:26]}  dxe4 {[%clk 0:02:24]} 20. Nxe4 {[%clk 0:02:03]}  O-O {[%clk 0:02:22]} 21. O-O {[%clk 0:02:00]}  f5 {[%clk 0:02:12]} 22. Ng5 {[%clk 0:01:58]}  Nc5 {[%clk 0:02:07]} 23. f4 {[%clk 0:01:48]}  Ba6 {[%clk 0:02:06]} 24. Bd5+ {[%clk 0:01:38]}  Kh8 {[%clk 0:02:06]} 25. c4 {[%clk 0:01:34]}  Rbe8 {[%clk 0:02:05]} 26. Qf3 {[%clk 0:01:21]}  Bb7 {[%clk 0:01:38]} 27. Rab1 {[%clk 0:01:17]}  Bxd5 {[%clk 0:01:35]} 28. Qxd5 {[%clk 0:01:18]}  Rd8 {[%clk 0:01:32]} 29. Ne6 {[%clk 0:00:55]}  Nxe6 {[%clk 0:01:23]} 30. Qxe6 {[%clk 0:00:56]}  Rd6 {[%clk 0:01:23]} 31. Bxa5 {[%clk 0:00:51]}  Qc5+ {[%clk 0:01:21]} 32. Kg2 {[%clk 0:00:38]}  Rxe6 {[%clk 0:01:20]} 33. Bb4 {[%clk 0:00:38]}  Qc6+ {[%clk 0:01:20]} 34. Kh3 {[%clk 0:00:38]}  Rd8 {[%clk 0:01:18]} 35. Rfd1 {[%clk 0:00:36]}  e4 {[%clk 0:01:17]} 36. dxe4 {[%clk 0:00:34]}  Rxd1 {[%clk 0:01:17]} 37. Rxd1 {[%clk 0:00:34]}  Qxe4 {[%clk 0:01:18]} 38. Rd8+ {[%clk 0:00:30]}  Kh7 {[%clk 0:01:18]} 39. Rd1 {[%clk 0:00:30]}  Qf3 {[%clk 0:01:18]} 0-1


[Site "https://www.chess.com"]

[Event "Titled Tuesday Blitz March 14 Early 2023"]
[White "Garcia Pantoja, Roberto"]
[Black "Avazkhonov, Alikhon"]
[WhiteFideId "3509265"]
[BlackFideId "14208504"]
[WhiteElo "2544"]
[BlackElo "1739"]
[Result "1-0"]
[Round "10"]
[TimeControl "180+2"]
[Date "2023.03.14"]
[WhiteClock "0:01:06"]
[BlackClock "0:00:05"]

1. e4 {[%clk 0:03:00]}  c5 {[%clk 0:02:58]} 2. Nf3 {[%clk 0:03:00]}  d6 {[%clk 0:02:58]} 3. d4 {[%clk 0:02:58]}  cxd4 {[%clk 0:02:59]} 4. Nxd4 {[%clk 0:02:59]}  Nf6 {[%clk 0:03:00]} 5. Nc3 {[%clk 0:02:58]}  a6 {[%clk 0:03:00]} 6. Bg5 {[%clk 0:02:58]}  e5 {[%clk 0:03:01]} 7. Bxf6 {[%clk 0:02:57]}  Qxf6 {[%clk 0:02:59]} 8. Nd5 {[%clk 0:02:57]}  Qd8 {[%clk 0:03:00]} 9. Nf5 {[%clk 0:02:57]}  g6 {[%clk 0:02:59]} 10. Nfe3 {[%clk 0:02:57]}  Nc6 {[%clk 0:02:59]} 11. Nc4 {[%clk 0:02:53]}  Be6 {[%clk 0:02:50]} 12. Ncb6 {[%clk 0:02:52]}  Rb8 {[%clk 0:02:50]} 13. Bc4 {[%clk 0:02:49]}  Bg7 {[%clk 0:02:46]} 14. O-O {[%clk 0:02:49]}  O-O {[%clk 0:02:46]} 15. c3 {[%clk 0:02:48]}  Bxd5 {[%clk 0:02:01]} 16. Nxd5 {[%clk 0:02:47]}  b5 {[%clk 0:02:01]} 17. Bb3 {[%clk 0:02:47]}  b4 {[%clk 0:01:50]} 18. cxb4 {[%clk 0:02:43]}  Nxb4 {[%clk 0:01:51]} 19. Nxb4 {[%clk 0:02:44]}  Rxb4 {[%clk 0:01:51]} 20. Qd3 {[%clk 0:02:34]}  a5 {[%clk 0:01:50]} 21. a3 {[%clk 0:02:32]}  Rd4 {[%clk 0:01:51]} 22. Qe2 {[%clk 0:02:31]}  Qb6 {[%clk 0:01:49]} 23. Bd5 {[%clk 0:02:29]}  Rb8 {[%clk 0:01:49]} 24. Rab1 {[%clk 0:02:28]}  Qa7 {[%clk 0:01:27]} 25. Rbc1 {[%clk 0:02:15]}  Bh6 {[%clk 0:01:06]} 26. Rc2 {[%clk 0:02:15]}  Kg7 {[%clk 0:01:01]} 27. Rd1 {[%clk 0:02:13]}  Rxd1+ {[%clk 0:00:24]} 28. Qxd1 {[%clk 0:02:11]}  Bg5 {[%clk 0:00:25]} 29. g3 {[%clk 0:02:10]}  h5 {[%clk 0:00:25]} 30. h4 {[%clk 0:02:09]}  Bh6 {[%clk 0:00:25]} 31. Kg2 {[%clk 0:02:09]}  Qd7 {[%clk 0:00:23]} 32. b3 {[%clk 0:02:01]}  Rc8 {[%clk 0:00:21]} 33. Rxc8 {[%clk 0:01:48]}  Qxc8 {[%clk 0:00:22]} 34. Qf3 {[%clk 0:01:48]}  Qc7 {[%clk 0:00:20]} 35. b4 {[%clk 0:01:46]}  axb4 {[%clk 0:00:21]} 36. axb4 {[%clk 0:01:47]}  Bd2 {[%clk 0:00:21]} 37. b5 {[%clk 0:01:42]}  Ba5 {[%clk 0:00:19]} 38. g4 {[%clk 0:01:30]}  hxg4 {[%clk 0:00:17]} 39. Qxg4 {[%clk 0:01:31]}  Bb6 {[%clk 0:00:15]} 40. h5 {[%clk 0:01:30]}  Qc5 {[%clk 0:00:15]} 41. Qf3 {[%clk 0:01:30]}  Qc7 {[%clk 0:00:13]} 42. hxg6 {[%clk 0:01:23]}  fxg6 {[%clk 0:00:14]} 43. Qg4 {[%clk 0:01:20]}  Qe7 {[%clk 0:00:10]} 44. Qc8 {[%clk 0:01:15]}  Qc7 {[%clk 0:00:06]} 45. Qg8+ {[%clk 0:01:14]}  Kf6 {[%clk 0:00:07]} 46. Kg3 {[%clk 0:01:07]}  Qc3+ {[%clk 0:00:06]} 47. Kg4 {[%clk 0:01:07]}  Qc7 {[%clk 0:00:05]} 48. Qf8+ {[%clk 0:01:06]} 1-0


[Site "https://www.chess.com"]

[Event "Titled Tuesday Blitz March 14 Early 2023"]
[White "Garakov, Mikhael"]
[Black "Zaksaite, Salomeja"]
[WhiteFideId "4169034"]
[BlackFideId "12801496"]
[WhiteElo "2347"]
[BlackElo "2059"]
[Result "1-0"]
[Round "10"]
[TimeControl "180+2"]
[Date "2023.03.14"]
[WhiteClock "0:01:12"]
[BlackClock "0:00:02"]

1. e4 {[%clk 0:02:56]}  e5 {[%clk 0:02:59]} 2. Nf3 {[%clk 0:02:56]}  Nc6 {[%clk 0:02:58]} 3. Bb5 {[%clk 0:02:54]}  a6 {[%clk 0:02:58]} 4. Bxc6 {[%clk 0:02:54]}  dxc6 {[%clk 0:02:58]} 5. O-O {[%clk 0:02:55]}  f6 {[%clk 0:02:57]} 6. d4 {[%clk 0:02:55]}  exd4 {[%clk 0:02:55]} 7. Nxd4 {[%clk 0:02:56]}  c5 {[%clk 0:02:51]} 8. Nb3 {[%clk 0:02:55]}  Qxd1 {[%clk 0:02:51]} 9. Rxd1 {[%clk 0:02:56]}  Bd6 {[%clk 0:02:51]} 10. Na5 {[%clk 0:02:52]}  Ke7 {[%clk 0:01:52]} 11. Nc4 {[%clk 0:02:38]}  Be6 {[%clk 0:01:50]} 12. Nxd6 {[%clk 0:02:37]}  cxd6 {[%clk 0:01:50]} 13. Bf4 {[%clk 0:02:37]}  Rd8 {[%clk 0:01:50]} 14. Nc3 {[%clk 0:02:35]}  g5 {[%clk 0:01:50]} 15. Bg3 {[%clk 0:02:34]}  h5 {[%clk 0:01:50]} 16. f3 {[%clk 0:02:20]}  Nh6 {[%clk 0:01:48]} 17. a4 {[%clk 0:02:10]}  g4 {[%clk 0:01:45]} 18. f4 {[%clk 0:02:07]}  Nf7 {[%clk 0:01:45]} 19. Bh4 {[%clk 0:02:06]}  Rh6 {[%clk 0:00:55]} 20. Rd2 {[%clk 0:01:52]}  Rb8 {[%clk 0:00:37]} 21. Re1 {[%clk 0:01:43]}  b5 {[%clk 0:00:36]} 22. axb5 {[%clk 0:01:41]}  axb5 {[%clk 0:00:36]} 23. e5 {[%clk 0:01:42]}  dxe5 {[%clk 0:00:23]} 24. fxe5 {[%clk 0:01:41]}  Kf8 {[%clk 0:00:10]} 25. Bxf6 {[%clk 0:01:39]}  Rg6 {[%clk 0:00:07]} 26. Ne4 {[%clk 0:01:37]}  Rc8 {[%clk 0:00:04]} 27. Ra1 {[%clk 0:01:31]}  Rh6 {[%clk 0:00:03]} 28. Ra6 {[%clk 0:01:29]}  Bf5 {[%clk 0:00:03]} 29. Nxc5 {[%clk 0:01:22]}  Rxc5 {[%clk 0:00:01]} 30. Ra8+ {[%clk 0:01:10]}  Rc8 {[%clk 0:00:01]} 31. Rxc8+ {[%clk 0:01:11]}  Bxc8 {[%clk 0:00:02]} 32. Rd5 {[%clk 0:01:12]} 1-0


[Site "https://www.chess.com"]

[Event "Titled Tuesday Blitz March 14 Early 2023"]
[White "Loiacono, Antonio"]
[Black "Fabris, Alberto"]
[WhiteFideId "895415"]
[BlackFideId "801348"]
[WhiteElo "2257"]
[BlackElo "2209"]
[Result "1-0"]
[Round "10"]
[TimeControl "180+2"]
[Date "2023.03.14"]
[WhiteClock "0:00:10"]
[BlackClock "0:00:01"]

1. e4 {[%clk 0:03:00]}  c5 {[%clk 0:02:59]} 2. Nf3 {[%clk 0:03:00]}  d6 {[%clk 0:03:00]} 3. d4 {[%clk 0:03:00]}  cxd4 {[%clk 0:03:00]} 4. Nxd4 {[%clk 0:03:01]}  Nf6 {[%clk 0:03:01]} 5. Nc3 {[%clk 0:03:01]}  a6 {[%clk 0:03:01]} 6. a4 {[%clk 0:03:02]}  e5 {[%clk 0:03:00]} 7. Nf3 {[%clk 0:03:02]}  Be7 {[%clk 0:03:00]} 8. Bc4 {[%clk 0:03:02]}  O-O {[%clk 0:03:00]} 9. Bg5 {[%clk 0:02:59]}  Nbd7 {[%clk 0:02:55]} 10. O-O {[%clk 0:02:58]}  Qc7 {[%clk 0:02:54]} 11. Bb3 {[%clk 0:02:56]}  b6 {[%clk 0:02:53]} 12. Nd5 {[%clk 0:02:23]}  Qd8 {[%clk 0:02:32]} 13. Bxf6 {[%clk 0:02:22]}  Nxf6 {[%clk 0:02:30]} 14. Nxf6+ {[%clk 0:02:19]}  Bxf6 {[%clk 0:02:29]} 15. Bd5 {[%clk 0:02:19]}  Ra7 {[%clk 0:02:20]} 16. Nd2 {[%clk 0:02:19]}  Bb7 {[%clk 0:02:18]} 17. Bxb7 {[%clk 0:02:14]}  Rxb7 {[%clk 0:02:18]} 18. Nb1 {[%clk 0:02:14]}  Rd7 {[%clk 0:02:08]} 19. Nc3 {[%clk 0:02:14]}  g6 {[%clk 0:01:56]} 20. Nd5 {[%clk 0:02:13]}  Bg7 {[%clk 0:01:57]} 21. Qe2 {[%clk 0:02:13]}  Qc8 {[%clk 0:01:51]} 22. Ra3 {[%clk 0:02:04]}  Qb7 {[%clk 0:01:44]} 23. Rb3 {[%clk 0:01:59]}  f5 {[%clk 0:01:14]} 24. Rxb6 {[%clk 0:01:58]}  Qc8 {[%clk 0:01:12]} 25. Rd1 {[%clk 0:00:57]}  fxe4 {[%clk 0:01:09]} 26. Qxe4 {[%clk 0:00:57]}  Rdf7 {[%clk 0:01:08]} 27. f3 {[%clk 0:00:51]}  Qc5+ {[%clk 0:01:02]} 28. Kh1 {[%clk 0:00:37]}  a5 {[%clk 0:00:55]} 29. Rb5 {[%clk 0:00:36]}  Qa7 {[%clk 0:00:47]} 30. h3 {[%clk 0:00:35]}  Bh6 {[%clk 0:00:41]} 31. Qe2 {[%clk 0:00:15]}  Bg5 {[%clk 0:00:26]} 32. Nc3 {[%clk 0:00:15]}  Qc7 {[%clk 0:00:25]} 33. Ne4 {[%clk 0:00:14]}  Be7 {[%clk 0:00:23]} 34. Rbd5 {[%clk 0:00:14]}  Qc6 {[%clk 0:00:20]} 35. b3 {[%clk 0:00:12]}  Rd8 {[%clk 0:00:19]} 36. c4 {[%clk 0:00:09]}  Bf8 {[%clk 0:00:18]} 37. Qd3 {[%clk 0:00:08]}  Kg7 {[%clk 0:00:15]} 38. Qc3 {[%clk 0:00:07]}  Qb6 {[%clk 0:00:13]} 39. Rb5 {[%clk 0:00:06]}  Qc6 {[%clk 0:00:12]} 40. Rbd5 {[%clk 0:00:06]}  Qb6 {[%clk 0:00:12]} 41. Rxa5 {[%clk 0:00:04]}  Kg8 {[%clk 0:00:10]} 42. Rad5 {[%clk 0:00:05]}  Be7 {[%clk 0:00:09]} 43. a5 {[%clk 0:00:06]}  Qa6 {[%clk 0:00:09]} 44. b4 {[%clk 0:00:06]}  Rc8 {[%clk 0:00:08]} 45. b5 {[%clk 0:00:06]}  Qb7 {[%clk 0:00:07]} 46. a6 {[%clk 0:00:07]}  Qb6 {[%clk 0:00:06]} 47. Nxd6 {[%clk 0:00:07]}  Bxd6 {[%clk 0:00:05]} 48. Rxd6 {[%clk 0:00:07]}  Qxb5 {[%clk 0:00:05]} 49. cxb5 {[%clk 0:00:07]}  Rxc3 {[%clk 0:00:05]} 50. Rd8+ {[%clk 0:00:07]}  Kg7 {[%clk 0:00:04]} 51. R8d7 {[%clk 0:00:08]}  Ra3 {[%clk 0:00:02]} 52. Rxf7+ {[%clk 0:00:08]}  Kxf7 {[%clk 0:00:02]} 53. Rd7+ {[%clk 0:00:08]}  Ke6 {[%clk 0:00:02]} 54. Rb7 {[%clk 0:00:09]}  Kd5 {[%clk 0:00:02]} 55. a7 {[%clk 0:00:09]}  Kc5 {[%clk 0:00:02]} 56. b6 {[%clk 0:00:09]}  Kc6 {[%clk 0:00:01]} 57. Rb8 {[%clk 0:00:10]} 1-0


[Site "https://www.chess.com"]

[Event "Titled Tuesday Blitz March 14 Early 2023"]
[White "Matutururu, Maxman"]
[Black "Botez, Alexandra"]
[WhiteFideId "11004487"]
[BlackFideId "2603365"]
[WhiteElo "2432"]
[BlackElo "2059"]
[Result "1-0"]
[Round "10"]
[TimeControl "180+2"]
[Date "2023.03.14"]
[WhiteClock "0:00:42"]
[BlackClock "0:00:16"]

1. d4 {[%clk 0:02:57]}  c5 {[%clk 0:02:59]} 2. d5 {[%clk 0:02:53]}  d6 {[%clk 0:02:57]} 3. Nc3 {[%clk 0:02:54]}  g6 {[%clk 0:02:56]} 4. e4 {[%clk 0:02:49]}  Nf6 {[%clk 0:02:55]} 5. Bd3 {[%clk 0:02:50]}  Bg7 {[%clk 0:02:55]} 6. h3 {[%clk 0:02:48]}  Na6 {[%clk 0:02:54]} 7. Nf3 {[%clk 0:02:49]}  Nc7 {[%clk 0:02:53]} 8. O-O {[%clk 0:02:49]}  O-O {[%clk 0:02:53]} 9. Bf4 {[%clk 0:02:45]}  a6 {[%clk 0:02:48]} 10. a4 {[%clk 0:02:43]}  b6 {[%clk 0:02:48]} 11. Re1 {[%clk 0:02:42]}  Rb8 {[%clk 0:02:44]} 12. Qe2 {[%clk 0:02:34]}  Nh5 {[%clk 0:02:22]} 13. Bh2 {[%clk 0:02:31]}  e5 {[%clk 0:02:20]} 14. dxe6 {[%clk 0:02:21]}  fxe6 {[%clk 0:02:18]} 15. Bc4 {[%clk 0:02:06]}  Kh8 {[%clk 0:02:04]} 16. Rad1 {[%clk 0:02:04]}  Nf4 {[%clk 0:01:54]} 17. Bxf4 {[%clk 0:02:01]}  Rxf4 {[%clk 0:01:51]} 18. Qd2 {[%clk 0:02:01]}  Rxf3 {[%clk 0:01:24]} 19. gxf3 {[%clk 0:01:55]}  Ne8 {[%clk 0:01:22]} 20. Qf4 {[%clk 0:01:37]}  Qe7 {[%clk 0:01:14]} 21. e5 {[%clk 0:01:31]}  d5 {[%clk 0:01:13]} 22. Bxd5 {[%clk 0:01:22]}  exd5 {[%clk 0:01:09]} 23. e6 {[%clk 0:01:22]}  Nc7 {[%clk 0:00:53]} 24. Nxd5 {[%clk 0:01:19]}  Nxd5 {[%clk 0:00:48]} 25. Qxb8 {[%clk 0:01:19]}  Qg5+ {[%clk 0:00:30]} 26. Kh1 {[%clk 0:01:17]}  h5 {[%clk 0:00:20]} 27. Qxc8+ {[%clk 0:01:16]}  Kh7 {[%clk 0:00:20]} 28. e7 {[%clk 0:00:58]}  Nf4 {[%clk 0:00:20]} 29. Rg1 {[%clk 0:00:52]}  Qh4 {[%clk 0:00:16]} 30. e8=Q {[%clk 0:00:50]}  Qxf2 {[%clk 0:00:15]} 31. Qg8+ {[%clk 0:00:42]}  Kh6 {[%clk 0:00:16]} 32. Qxg7+ {[%clk 0:00:42]}  Kxg7 {[%clk 0:00:16]} 33. Rd7+ {[%clk 0:00:42]} 1-0


[Site "https://www.chess.com"]

[Event "Titled Tuesday Blitz March 14 Early 2023"]
[White "aidenzhouu"]
[Black "Larina, Maria"]
[BlackFideId "24113182"]
[WhiteElo "2420"]
[BlackElo "1848"]
[Result "1-0"]
[Round "10"]
[TimeControl "180+2"]
[Date "2023.03.14"]
[WhiteClock "0:00:16"]
[BlackClock "0:00:10"]

1. d4 {[%clk 0:03:00]}  f5 {[%clk 0:02:59]} 2. Nf3 {[%clk 0:03:00]}  Nf6 {[%clk 0:02:58]} 3. c4 {[%clk 0:03:00]}  g6 {[%clk 0:02:59]} 4. g3 {[%clk 0:02:59]}  Bg7 {[%clk 0:02:59]} 5. Bg2 {[%clk 0:02:59]}  O-O {[%clk 0:02:59]} 6. O-O {[%clk 0:03:00]}  d6 {[%clk 0:03:00]} 7. Nc3 {[%clk 0:03:01]}  Nc6 {[%clk 0:03:00]} 8. b3 {[%clk 0:02:52]}  e5 {[%clk 0:02:59]} 9. dxe5 {[%clk 0:02:46]}  dxe5 {[%clk 0:03:00]} 10. Bb2 {[%clk 0:02:33]}  e4 {[%clk 0:02:59]} 11. Ng5 {[%clk 0:02:18]}  h6 {[%clk 0:02:53]} 12. Nh3 {[%clk 0:02:16]}  g5 {[%clk 0:02:53]} 13. Qxd8 {[%clk 0:02:15]}  Rxd8 {[%clk 0:02:53]} 14. Rfd1 {[%clk 0:02:15]}  Be6 {[%clk 0:02:36]} 15. Nb5 {[%clk 0:02:13]}  Ne8 {[%clk 0:02:15]} 16. Bxg7 {[%clk 0:02:11]}  Kxg7 {[%clk 0:02:16]} 17. e3 {[%clk 0:01:53]}  Ne5 {[%clk 0:02:10]} 18. Nd4 {[%clk 0:01:31]}  Kf6 {[%clk 0:01:39]} 19. Bf1 {[%clk 0:01:21]}  Bf7 {[%clk 0:01:31]} 20. Be2 {[%clk 0:01:17]}  c6 {[%clk 0:01:27]} 21. Kg2 {[%clk 0:01:13]}  Nc7 {[%clk 0:01:16]} 22. Ng1 {[%clk 0:01:07]}  Ne6 {[%clk 0:01:16]} 23. Rac1 {[%clk 0:00:55]}  Rd7 {[%clk 0:01:04]} 24. Nxe6 {[%clk 0:00:52]}  Bxe6 {[%clk 0:01:03]} 25. Rxd7 {[%clk 0:00:52]}  Bxd7 {[%clk 0:00:57]} 26. Rd1 {[%clk 0:00:51]}  Ke7 {[%clk 0:00:55]} 27. Bf1 {[%clk 0:00:47]}  Be6 {[%clk 0:00:54]} 28. Ne2 {[%clk 0:00:47]}  Rd8 {[%clk 0:00:53]} 29. Rxd8 {[%clk 0:00:45]}  Kxd8 {[%clk 0:00:54]} 30. Nd4 {[%clk 0:00:46]}  Bd7 {[%clk 0:00:53]} 31. b4 {[%clk 0:00:43]}  Kc7 {[%clk 0:00:33]} 32. c5 {[%clk 0:00:37]}  b6 {[%clk 0:00:32]} 33. Be2 {[%clk 0:00:30]}  Bc8 {[%clk 0:00:28]} 34. Kf1 {[%clk 0:00:25]}  a5 {[%clk 0:00:25]} 35. cxb6+ {[%clk 0:00:21]}  Kxb6 {[%clk 0:00:23]} 36. bxa5+ {[%clk 0:00:22]}  Kxa5 {[%clk 0:00:24]} 37. Ke1 {[%clk 0:00:22]}  c5 {[%clk 0:00:23]} 38. Nb3+ {[%clk 0:00:18]}  Kb4 {[%clk 0:00:23]} 39. Kd2 {[%clk 0:00:17]}  c4 {[%clk 0:00:23]} 40. Nd4 {[%clk 0:00:17]}  c3+ {[%clk 0:00:24]} 41. Kc2 {[%clk 0:00:17]}  Bd7 {[%clk 0:00:23]} 42. a3+ {[%clk 0:00:17]}  Kxa3 {[%clk 0:00:22]} 43. Kxc3 {[%clk 0:00:18]}  Ka4 {[%clk 0:00:20]} 44. Bc4 {[%clk 0:00:17]}  Nxc4 {[%clk 0:00:18]} 45. Kxc4 {[%clk 0:00:18]}  Ka3 {[%clk 0:00:15]} 46. Kd5 {[%clk 0:00:18]}  Kb2 {[%clk 0:00:15]} 47. Ke5 {[%clk 0:00:18]}  Kc3 {[%clk 0:00:15]} 48. Nxf5 {[%clk 0:00:17]}  h5 {[%clk 0:00:15]} 49. Kxe4 {[%clk 0:00:17]}  Kd2 {[%clk 0:00:15]} 50. Nd4 {[%clk 0:00:15]}  Ke1 {[%clk 0:00:15]} 51. Kf3 {[%clk 0:00:16]}  Kf1 {[%clk 0:00:15]} 52. e4 {[%clk 0:00:13]}  Kg1 {[%clk 0:00:14]} 53. h4 {[%clk 0:00:12]}  gxh4 {[%clk 0:00:12]} 54. gxh4 {[%clk 0:00:13]}  Kh2 {[%clk 0:00:12]} 55. Nf5 {[%clk 0:00:13]}  Be8 {[%clk 0:00:09]} 56. e5 {[%clk 0:00:12]}  Kh3 {[%clk 0:00:10]} 57. e6 {[%clk 0:00:12]}  Kh2 {[%clk 0:00:09]} 58. e7 {[%clk 0:00:12]}  Kh3 {[%clk 0:00:10]} 59. Kf4 {[%clk 0:00:12]}  Kh2 {[%clk 0:00:09]} 60. Kg5 {[%clk 0:00:13]}  Kh3 {[%clk 0:00:09]} 61. Ng7 {[%clk 0:00:13]}  Bf7 {[%clk 0:00:09]} 62. e8=Q {[%clk 0:00:13]}  Bxe8 {[%clk 0:00:09]} 63. Nxe8 {[%clk 0:00:14]}  Kg2 {[%clk 0:00:09]} 64. Kxh5 {[%clk 0:00:14]}  Kxf2 {[%clk 0:00:10]} 65. Kg5 {[%clk 0:00:15]}  Kf3 {[%clk 0:00:10]} 66. h5 {[%clk 0:00:16]} 1-0


[Site "https://www.chess.com"]

[Event "Titled Tuesday Blitz March 14 Early 2023"]
[White "Smith, Garrett L"]
[Black "Matveeva, Olga"]
[WhiteFideId "2024829"]
[BlackFideId "24107018"]
[WhiteElo "2273"]
[BlackElo "2056"]
[Result "0-1"]
[Round "10"]
[TimeControl "180+2"]
[Date "2023.03.14"]
[WhiteClock "0:01:01"]
[BlackClock "0:02:11"]

1. e4 {[%clk 0:03:00]}  e6 {[%clk 0:02:59]} 2. d4 {[%clk 0:03:00]}  d5 {[%clk 0:02:59]} 3. Nc3 {[%clk 0:03:01]}  Nf6 {[%clk 0:02:59]} 4. e5 {[%clk 0:03:01]}  Nfd7 {[%clk 0:02:59]} 5. f4 {[%clk 0:03:02]}  c5 {[%clk 0:02:59]} 6. Nf3 {[%clk 0:03:02]}  Nc6 {[%clk 0:02:56]} 7. Be3 {[%clk 0:03:02]}  cxd4 {[%clk 0:02:57]} 8. Nxd4 {[%clk 0:03:03]}  Bc5 {[%clk 0:02:56]} 9. Qd2 {[%clk 0:03:00]}  O-O {[%clk 0:02:55]} 10. O-O-O {[%clk 0:03:00]}  a6 {[%clk 0:02:56]} 11. h4 {[%clk 0:02:56]}  Bxd4 {[%clk 0:02:55]} 12. Bxd4 {[%clk 0:02:56]}  b5 {[%clk 0:02:55]} 13. h5 {[%clk 0:02:48]}  b4 {[%clk 0:02:55]} 14. Ne2 {[%clk 0:02:39]}  a5 {[%clk 0:02:55]} 15. h6 {[%clk 0:02:35]}  g6 {[%clk 0:02:54]} 16. Kb1 {[%clk 0:02:35]}  Ba6 {[%clk 0:02:53]} 17. g4 {[%clk 0:02:25]}  Qc7 {[%clk 0:02:49]} 18. Ng3 {[%clk 0:02:00]}  Rfc8 {[%clk 0:02:47]} 19. Rh2 {[%clk 0:01:57]}  a4 {[%clk 0:02:27]} 20. f5 {[%clk 0:01:46]}  Nxd4 {[%clk 0:02:20]} 21. Qxd4 {[%clk 0:01:40]}  Qxe5 {[%clk 0:02:19]} 22. fxe6 {[%clk 0:01:16]}  fxe6 {[%clk 0:02:17]} 23. Qxe5 {[%clk 0:01:03]}  Nxe5 {[%clk 0:02:18]} 24. Bxa6 {[%clk 0:01:03]}  Rxa6 {[%clk 0:02:17]} 25. g5 {[%clk 0:01:02]}  Nf3 {[%clk 0:02:14]} 26. Rg2 {[%clk 0:01:02]}  Nxg5 {[%clk 0:02:13]} 27. Nh5 {[%clk 0:01:01]}  Ne4 {[%clk 0:02:11]} 0-1


[Site "https://www.chess.com"]